bitfinex-derivatives/quotes_BNBF0:USTF0_20250417
["timestamp","ask_amount","ask_price","bid_price","bid_amount"]
[1744881977923,0.502,585.9,585.04,1.628]
[1744881978125,0.3062748,585.89,585.04,1.628]
[1744881981128,0.502,585.9,585.04,1.628]
[1744881981427,0.30627554,585.89,585.04,1.628]
[1744881983634,0.502,585.9,585.04,1.628]
[1744881983933,0.30627638,585.89,585.04,1.628]
[1744881984530,0.30627532,585.88,585.04,1.628]
[1744881984729,0.30627532,585.87,585.04,1.628]
[1744881984933,0.30627532,585.89,585.04,1.628]
[1744881985129,0.30627532,585.88,585.04,1.628]
[1744881985328,0.30627532,585.87,585.04,1.628]
[1744881985533,0.30627532,585.89,585.04,1.628]
[1744881985732,0.30627532,585.88,585.04,1.628]
[1744881985928,0.30627532,585.87,585.04,1.628]
[1744881986132,0.30627532,585.89,585.04,1.628]
[1744881986328,0.30627532,585.88,585.04,1.628]
[1744881986530,0.30627532,585.89,585.04,1.628]
[1744881987735,0.502,585.9,585.04,1.628]
[1744881987931,0.30627401,585.89,585.04,1.628]
[1744881989336,0.502,585.9,585.04,1.628]
[1744881989636,0.30627555,585.89,585.04,1.628]
[1744881991038,0.30627746,585.88,585.04,1.628]
[1744881991237,0.30627746,585.89,585.04,1.628]
[1744881991434,0.30627746,585.88,585.04,1.628]
[1744881991634,0.30627746,585.89,585.04,1.628]
[1744881991833,0.30627746,585.88,585.04,1.628]
[1744881992033,0.30627746,585.89,585.04,1.628]
[1744881994139,0.502,585.9,585.04,1.628]
[1744882000943,0.34134352,585.92,585.04,1.628]
[1744882002040,0.30627676,585.91,585.04,1.628]
[1744882003940,0.487,585.9,585.04,1.628]
[1744882004143,0.30627676,585.89,585.04,1.628]
[1744882008849,0.487,585.9,585.04,1.628]
[1744882009047,0.30628247,585.89,585.04,1.628]
[1744882011254,0.487,585.9,585.04,1.628]
[1744882011748,0.82835518,585.9,585.04,1.628]
[1744882013354,0.63870287,585.89,585.04,1.628]
[1744882013654,0.64769437,585.88,585.04,1.628]
[1744882013850,0.64770019,585.87,585.04,1.628]
[1744882014055,0.64770602,585.86,585.04,1.628]
[1744882014250,0.34138431,585.85,585.04,1.628]
[1744882014448,0.30633753,585.84,585.04,1.628]
[1744882014648,0.34139596,585.83,585.04,1.628]
[1744882014849,0.30633753,585.82,585.04,1.628]
[1744882015052,0.34140762,585.81,585.04,1.628]
[1744882015654,0.30636122,585.8,585.04,1.628]
[1744882015851,0.34141927,585.79,585.04,1.628]
[1744882016149,0.30636122,585.78,585.04,1.628]
[1744882016350,0.34143093,585.77,585.04,1.628]
[1744882016554,0.30636122,585.76,585.04,1.628]
[1744882016753,0.64779798,585.76,585.04,1.628]
[1744882017354,0.30636122,585.75,585.04,1.628]
[1744882019456,0.29739142,585.74,585.04,1.628]
[1744882019656,0.30636122,585.73,585.04,1.628]
[1744882020055,0.577,585.72,585.04,1.628]
[1744882020257,0.91846008,585.72,585.04,1.628]
[1744882020555,0.64784772,585.71,585.04,1.628]
[1744882020856,0.64785355,585.7,585.04,1.628]
[1744882021057,0.64785938,585.69,585.04,1.628]
[1744882021357,0.3414834,585.68,585.04,1.628]
[1744882021555,0.30641964,585.67,585.04,1.628]
[1744882021752,0.34149506,585.66,585.04,1.628]
[1744882022461,0.29741683,585.65,585.04,1.628]
[1744882024159,0.34149506,585.66,585.04,1.628]
[1744882024561,0.29741683,585.65,585.04,1.628]
[1744882027254,0.34149506,585.66,585.04,1.628]
[1744882028461,0.29741683,585.65,585.04,1.628]
[1744882030162,0.34149506,585.66,585.04,1.628]
[1744882031461,0.29741683,585.65,585.04,1.628]
[1744882033165,0.34149506,585.66,585.04,1.628]
[1744882034460,0.29741683,585.65,585.04,1.628]
[1744882036166,0.34149506,585.66,585.04,1.628]
[1744882036568,0.29742446,585.64,585.04,1.628]
[1744882038266,0.30641048,585.63,585.04,1.628]
[1744882039368,0.30641048,585.65,585.04,1.628]
[1744882039567,0.30641048,585.64,585.04,1.628]
[1744882039763,0.30641048,585.65,585.04,1.628]
[1744882039967,0.30641048,585.64,585.04,1.628]
[1744882040163,0.30641048,585.65,585.04,1.628]
[1744882040565,0.29742446,585.63,585.04,1.628]
[1744882040766,0.30641048,585.62,585.04,1.628]
[1744882040967,0.29742446,585.63,585.04,1.628]
[1744882041269,0.30641213,585.62,585.04,1.628]
[1744882042465,0.30641213,585.61,585.04,1.628]
[1744882042670,0.30641213,585.65,585.04,1.628]
[1744882043569,0.29742446,585.64,585.04,1.628]
[1744882043766,0.30641213,585.63,585.04,1.628]
[1744882045468,0.30641213,585.65,585.04,1.628]
[1744882045669,0.34149506,585.66,585.04,1.628]
[1744882046472,0.29741683,585.65,585.04,1.628]
[1744882047574,0.63891772,585.65,585.04,1.628]
[1744882048173,0.34150089,585.65,585.04,1.628]
[1744882049474,0.29732535,585.64,585.04,1.628]
[1744882049673,0.63883207,585.64,585.04,1.628]
[1744882050270,0.34151255,585.63,585.04,1.628]
[1744882050969,0.30647312,585.62,585.04,1.628]
[1744882051170,0.34152422,585.61,585.04,1.628]
[1744882051369,0.30647312,585.6,585.04,1.628]
[1744882051675,0.34153588,585.59,585.04,1.628]
[1744882051872,0.30647312,585.58,585.04,1.628]
[1744882052069,0.64801483,585.58,585.04,1.628]
[1744882052271,0.34154171,585.58,585.04,1.628]
[1744882052475,0.29746005,585.57,585.04,1.628]
[1744882052677,0.60393634,585.57,585.04,1.628]
[1744882052873,0.34155338,585.56,585.04,1.628]
[1744882054479,0.29746895,585.55,585.04,1.628]
[1744882054683,0.63902816,585.55,585.04,1.628]
[1744882060379,0.34155921,585.55,585.04,1.628]
[1744882061679,0.29746895,585.54,585.04,1.628]
[1744882062684,0.30647832,585.53,585.04,1.628]
[1744882063384,0.30647832,585.54,585.04,1.628]
[1744882063586,0.29747276,585.52,585.04,1.628]
[1744882064181,0.29747276,585.52,585.04,1.044]
[1744882064482,0.30645608,585.51,585.04,1.044]
[1744882065487,0.29747276,585.52,585.04,1.044]
[1744882065687,0.30621866,585.51,585.04,1.044]
[1744882066486,0.30621866,585.54,585.04,1.044]
[1744882067089,0.34155921,585.55,585.04,1.044]
[1744882067286,0.30621865,585.54,585.04,1.044]
[1744882067487,0.29747149,585.53,585.04,1.044]
[1744882067683,0.30621865,585.52,585.04,1.044]
[1744882068787,0.29747149,585.53,585.04,1.044]
[1744882068992,0.30621846,585.52,585.04,1.044]
[1744882069490,0.30621846,585.54,585.04,1.044]
[1744882070491,0.29746641,585.53,585.04,1.044]
[1744882070887,0.30621609,585.52,585.04,1.044]
[1744882071993,0.29190045,585.52,585.04,1.044]
[1744882072389,0.34155921,585.55,585.04,1.044]
[1744882073192,0.30690609,585.54,585.04,1.044]
[1744882073487,0.60436995,585.54,585.04,1.044]
[1744882073694,0.30690609,585.53,585.04,1.044]
[1744882074793,0.29746386,585.54,585.04,1.044]
[1744882075294,0.34155921,585.55,585.04,1.044]
[1744882076396,0.29737998,585.54,585.04,1.044]
[1744882076595,0.60428399,585.54,585.04,1.044]
[1744882076792,0.29737998,585.54,585.04,1.044]
[1744882078191,0.454,585.53,585.04,1.044]
[1744882079695,0.29746641,585.52,585.04,1.044]
[1744882081098,0.454,585.53,585.04,1.044]
[1744882081397,0.29746895,585.52,585.04,1.044]
[1744882084199,0.454,585.53,585.04,1.044]
[1744882084398,0.30621563,585.52,585.04,1.044]
[1744882084599,0.60368458,585.52,585.04,1.044]
[1744882084893,0.30621563,585.51,585.04,1.044]
[1744882087199,0.30621563,585.52,585.04,1.044]
[1744882087400,0.454,585.53,585.04,1.044]
[1744882091497,0.29746641,585.52,585.04,1.044]
[1744882093198,0.454,585.53,585.04,1.044]
[1744882094504,0.29746641,585.52,585.04,1.044]
[1744882096208,0.34155921,585.55,585.04,1.044]
[1744882097108,0.30624964,585.54,585.04,1.044]
[1744882097407,0.60361056,585.54,585.04,1.044]
[1744882097603,0.30624964,585.53,585.04,1.044]
[1744882097809,0.85024964,585.53,585.04,1.044]
[1744882098109,0.30624964,585.52,585.04,1.044]
[1744882099205,0.30624805,585.51,585.04,1.044]
[1744882099404,0.30624805,585.5,585.04,1.044]
[1744882099708,0.30624805,585.49,585.04,1.044]
[1744882099904,0.30624805,585.52,585.04,1.044]
[1744882100410,0.603717,585.52,585.04,1.044]
[1744882100709,0.30624805,585.51,585.04,1.044]
[1744882100906,0.29746895,585.52,585.04,1.044]
[1744882102208,0.544,585.53,585.04,1.044]
[1744882102714,0.30622666,585.52,585.04,1.044]
[1744882104014,0.544,585.53,585.04,1.044]
[1744882104219,0.30623134,585.52,585.04,1.044]
[1744882106021,0.544,585.53,585.04,1.044]
[1744882110727,0.306231,585.52,585.04,1.044]
[1744882112329,0.544,585.53,585.04,1.044]
[1744882124441,1.30443222,587.32,584.76,0.29731011]
[1744882124741,0.29713495,585.94,584.77,0.65593712]
[1744882124939,0.30598852,585.93,584.78,0.31392232]
[1744882125138,0.34059945,587.2,584.77,0.3420148]
[1744882125340,0.29718443,585.94,584.78,0.31391715]
[1744882125544,0.30598336,585.93,584.78,0.31391715]
[1744882125839,0.30598336,585.92,584.78,0.31391715]
[1744882126043,0.2971857,585.94,584.78,0.31391715]
[1744882126044,0.30598336,585.93,584.78,0.31391715]
[1744882126440,0.30598336,586.92,584.79,0.34200311]
[1744882126638,0.30598336,585.92,584.79,0.34200311]
[1744882126842,0.34082001,586.82,584.8,0.31388971]
[1744882127041,0.30595599,586.81,584.81,0.34199141]
[1744882127246,0.34083743,586.79,584.82,0.31388971]
[1744882127542,0.30595599,586.78,584.82,0.31388971]
[1744882127748,0.30595599,586.77,584.82,0.31388971]
[1744882127942,0.30595599,586.76,584.82,0.31388971]
[1744882128147,0.30595599,586.75,584.82,0.31388971]
[1744882128344,0.34083743,586.79,584.81,0.34199141]
[1744882128545,0.30595104,586.74,584.81,0.34199141]
[1744882128848,0.30595104,586.73,584.81,0.34199141]
[1744882129043,0.34088391,586.71,584.81,0.34199141]
[1744882129244,0.30595104,586.7,584.81,0.34199141]
[1744882129448,0.34090134,586.68,584.81,0.34199141]
[1744882129646,0.30595104,586.67,584.81,0.34199141]
[1744882129845,0.34091877,586.65,584.81,0.34199141]
[1744882130045,0.30595104,586.64,584.81,0.34199141]
[1744882130248,0.34093621,586.62,584.81,0.34199141]
[1744882130547,0.30595104,586.61,584.81,0.34199141]
[1744882130748,0.34095364,586.59,584.81,0.34199141]
[1744882130948,0.30595104,586.58,584.81,0.34199141]
[1744882131148,0.34097108,586.56,584.81,0.34199141]
[1744882131348,0.30595104,586.55,584.81,0.34199141]
[1744882131550,0.34098852,586.53,584.81,0.34199141]
[1744882131747,0.30595104,586.52,584.81,0.34199141]
[1744882131949,0.34100596,586.5,584.81,0.34199141]
[1744882132146,0.30595104,586.49,584.81,0.34199141]
[1744882132347,0.34102341,586.47,584.81,0.34199141]
[1744882132551,0.30595104,586.46,584.81,0.34199141]
[1744882132751,0.34104085,586.44,584.81,0.34199141]
[1744882132946,0.30595104,586.43,584.81,0.34199141]
[1744882133152,0.3410583,586.41,584.81,0.34199141]
[1744882133348,0.30609699,586.4,584.81,0.34199141]
[1744882133652,0.34107575,586.38,584.81,0.34199141]
[1744882133854,0.30609699,586.37,584.81,0.34199141]
[1744882134148,0.3410932,586.35,584.81,0.34199141]
[1744882134353,0.30609699,586.34,584.81,0.34199141]
[1744882134552,0.34111065,586.32,584.81,0.34199141]
[1744882134755,0.30609699,586.31,584.81,0.34199141]
[1744882134951,0.30609859,586.3,584.81,0.34199141]
[1744882135152,0.34112811,586.29,584.81,0.34199141]
[1744882135354,0.30609859,586.28,584.81,0.34199141]
[1744882135555,0.34114556,586.26,584.81,0.34199141]
[1744882135755,0.30609859,586.25,584.81,0.34199141]
[1744882136050,0.34116302,586.23,584.81,0.34199141]
[1744882136254,0.30609859,586.22,584.81,0.34199141]
[1744882136450,0.34118048,586.2,584.81,0.34199141]
[1744882136652,0.30609859,586.19,584.81,0.34199141]
[1744882136854,0.34119794,586.17,584.81,0.34199141]
[1744882137050,0.30609859,586.16,584.81,0.34199141]
[1744882137255,0.3412154,586.14,584.81,0.34199141]
[1744882137455,0.30609859,586.13,584.81,0.34199141]
[1744882137652,0.34123287,586.11,584.81,0.34199141]
[1744882137952,0.30609859,586.1,584.81,0.34199141]
[1744882138155,0.34125034,586.08,584.81,0.34199141]
[1744882138354,0.30609859,586.07,584.81,0.34199141]
[1744882138551,0.3412678,586.05,584.81,0.34199141]
[1744882138756,0.30609859,586.04,584.81,0.34199141]
[1744882139056,0.34128528,586.02,584.81,0.34199141]
[1744882139257,0.30609859,586.01,584.81,0.34199141]
[1744882139459,0.34130275,585.99,584.81,0.34199141]
[1744882139958,0.30611621,585.98,584.81,0.34199141]
[1744882140257,0.34132022,585.96,584.81,0.34199141]
[1744882140457,0.30611621,585.95,584.81,0.34199141]
[1744882140757,0.34133187,585.94,584.81,0.34199141]
[1744882140958,0.30611621,585.93,584.81,0.34199141]
[1744882141254,0.64743957,585.92,584.81,0.34199141]
[1744882141459,0.6474454,585.91,584.81,0.34199141]
[1744882141753,0.64745123,585.9,584.81,0.34199141]
[1744882141956,0.64745705,585.89,584.81,0.34199141]
[1744882142259,0.64746288,585.88,584.81,0.34199141]
[1744882142561,0.34137265,585.87,584.81,0.34199141]
[1744882142761,0.30607234,585.86,584.81,0.34199141]
[1744882145762,0.63885813,585.87,584.81,0.34199141]
[1744882147261,0.34137265,585.87,584.81,0.34199141]
[1744882154364,0.34137265,585.87,584.82,0.31389118]
[1744882154563,0.34137265,585.87,584.83,0.34197972]
[1744882154758,0.34137265,585.87,584.84,0.31389118]
[1744882154963,0.34137265,585.87,584.85,0.34196802]
[1744882155162,0.34137265,585.87,584.86,0.31389118]
[1744882157261,0.34137265,585.87,584.85,0.34196802]
[1744882179580,0.30600436,585.86,584.85,0.34196802]
[1744882182783,0.34137265,585.87,584.85,0.34196802]
[1744882195990,0.30600159,585.86,584.85,0.34196802]
[1744882197599,0.34137265,585.87,584.85,0.34196802]
[1744882197898,0.30600085,585.86,584.85,0.34196802]
[1744882199998,0.30600085,585.86,584.86,0.31393488]
[1744882200194,0.30600085,585.86,584.85,0.34196802]
[1744882201601,0.30600085,585.86,584.86,0.3139346]
[1744882203803,0.34137265,585.87,584.85,0.34196802]
[1744882204102,0.30600102,585.86,584.86,0.31393488]
[1744882204703,0.30600102,585.86,584.85,0.34196802]
[1744882205003,0.30600102,585.86,584.86,0.31393488]
[1744882205498,0.30600102,585.86,584.85,0.34196802]
[1744882207203,0.30600073,585.85,584.85,0.34196802]
[1744882207402,0.30600073,585.86,584.85,0.34196802]
[1744882207699,0.30600073,585.85,584.86,0.3139346]
[1744882207902,0.30600073,585.84,584.86,0.3139346]
[1744882208104,0.30600073,585.86,584.86,0.3139346]
[1744882208302,0.30600073,585.86,584.85,0.34196802]
[1744882213604,0.30600073,585.86,584.86,0.31393822]
[1744882215007,0.34137265,585.87,584.85,0.34196802]
[1744882215205,0.30600056,585.86,584.86,0.31393442]
[1744882216708,0.34137265,585.87,584.85,0.34196802]
[1744882216908,0.30600104,585.86,584.86,0.3139352]
[1744882218006,0.34137265,585.87,584.85,0.34196802]
[1744882218206,0.30600216,585.86,584.86,0.31393603]
[1744882218407,0.30600289,585.85,584.85,0.34196802]
[1744882218603,0.30600289,585.86,584.85,0.34196802]
[1744882218808,0.30600289,585.85,584.85,0.34196802]
[1744882219006,0.30600289,585.86,584.85,0.34196802]
[1744882219206,0.30600289,585.86,584.86,0.31392535]
[1744882220509,0.34137265,585.87,584.86,0.31392535]
[1744882221612,0.30597988,585.86,584.86,0.31392535]
[1744882221910,0.34137265,585.87,584.86,0.31392535]
[1744882223307,0.34137265,585.87,584.87,0.31389503]
[1744882223505,0.34137265,585.87,584.88,0.31389503]
[1744882223705,0.34137265,585.87,584.86,0.31389503]
[1744882223910,0.34137265,585.87,584.87,0.31389503]
[1744882224110,0.34137265,585.87,584.86,0.31389503]
[1744882224809,0.34137265,585.87,584.85,0.34196802]
[1744882225012,0.30596386,585.86,584.86,0.31389757]
[1744882225512,0.34137265,585.87,584.86,0.31389757]
[1744882226107,0.34137265,585.87,584.86,0.65585974]
[1744882226311,0.34137265,585.87,584.87,0.31389757]
[1744882228114,0.34137265,585.87,584.86,0.34196217]
[1744882228314,0.34137265,585.87,584.87,0.31386636]
[1744882228513,0.34137265,585.87,584.87,0.65582269]
[1744882228709,0.34137265,585.87,584.88,0.31386636]
[1744882233616,0.34137265,585.87,584.87,0.34195633]
[1744882245426,0.34137265,585.87,584.88,0.31385897]
[1744882247834,0.34137265,585.87,584.89,0.31386266]
[1744882248129,0.34137265,585.87,584.88,0.31386266]
[1744882248333,0.34137265,585.87,584.89,0.31386266]
[1744882248532,0.34137265,585.87,584.88,0.31386266]
[1744882250636,0.34137265,585.87,584.87,0.63924993]
[1744882252335,0.34137265,585.87,584.87,0.34195633]
[1744882253435,0.34137265,585.87,584.88,0.31386929]
[1744882255938,0.34137265,585.87,584.89,0.31386845]
[1744882256138,0.34137265,585.87,584.88,0.31386845]
[1744882257434,0.34137265,585.87,584.87,0.63916361]
[1744882257733,0.34137265,585.87,584.88,0.31387141]
[1744882263447,0.34137265,585.87,584.87,0.63917884]
[1744882263647,0.34137265,585.87,584.88,0.31387117]
[1744882265050,0.34137265,585.87,584.87,0.63924993]
[1744882265249,0.34137265,585.87,584.88,0.31387059]
[1744882267254,0.34137265,585.87,584.87,0.63924993]
[1744882267548,0.34137265,585.87,584.87,0.34195633]
[1744882268554,0.34137265,585.87,584.87,0.63923723]
[1744882270253,0.34137265,585.87,584.87,0.34195633]
[1744882271555,0.34137265,585.87,584.87,0.63922708]
[1744882273254,0.34137265,585.87,584.87,0.34195633]
[1744882274657,0.34137265,585.87,584.87,0.63922708]
[1744882276253,0.34137265,585.87,584.87,0.34195633]
[1744882277057,0.34137265,585.87,584.88,0.31386768]
[1744882278058,0.34137265,585.87,584.89,0.31386865]
[1744882278262,0.34137265,585.87,584.87,0.63915853]
[1744882278561,0.34137265,585.87,584.88,0.3138689]
[1744882279657,0.34137265,585.87,584.87,0.34195633]
[1744882279963,0.34137265,585.87,584.88,0.31386832]
[1744882282860,0.34137265,585.87,584.87,0.34195633]
[1744882283065,0.34137265,585.87,584.88,0.31386831]
[1744882285970,0.34137265,585.87,584.87,0.34195633]
[1744882286170,0.34137265,585.87,584.88,0.31386884]
[1744882287570,0.34137265,585.87,584.87,0.63920296]
[1744882287772,0.34137265,585.87,584.88,0.313868]
[1744882290273,0.34137265,585.87,584.89,0.34194463]
[1744882290473,0.34137265,585.87,584.9,0.313868]
[1744882291074,0.34137265,585.87,584.91,0.34193294]
[1744882291373,0.34137265,585.87,584.92,0.313868]
[1744882291969,0.34137265,585.87,584.93,0.34192125]
[1744882292273,0.34137265,585.87,584.94,0.313868]
[1744882295676,0.34137265,585.87,584.93,0.34192125]
[1744882295872,0.34137265,585.87,584.94,0.31384941]
[1744882297274,0.34137265,585.87,584.93,0.34192125]
[1744882297478,0.34137265,585.87,584.94,0.313847]
[1744882299678,0.34137265,585.87,584.93,0.63911584]
[1744882300273,0.34137265,585.87,584.93,0.34192125]
[1744882300775,0.34137265,585.87,584.93,0.63918438]
[1744882303276,0.34137265,585.87,584.93,0.34192125]
[1744882303880,0.34137265,585.87,584.94,0.31385256]
[1744882308682,0.34137265,585.87,584.93,0.63912472]
[1744882308983,0.34137265,585.87,584.94,0.31385524]
[1744882311478,0.34137265,585.87,584.93,0.63912599]
[1744882312283,0.34137265,585.87,584.93,0.34192125]
[1744882312478,0.34137265,585.87,584.94,0.31385775]
[1744882313184,0.34137265,585.87,584.93,0.34192125]
[1744882313683,0.34137265,585.87,584.93,0.63913741]
[1744882315484,0.34137265,585.87,584.93,0.34192125]
[1744882316581,0.34137265,585.87,584.93,0.63917168]
[1744882318390,0.34137265,585.87,584.93,0.34192125]
[1744882319689,0.34137265,585.87,584.93,0.63917041]
[1744882321385,0.34137265,585.87,584.93,0.34192125]
[1744882321787,0.34137265,585.87,584.94,0.31385775]
[1744882325894,0.34137265,585.87,584.93,0.63918438]
[1744882326096,0.34137265,585.87,584.94,0.31385914]
[1744882327490,0.34137265,585.87,584.93,0.34192125]
[1744882327696,0.34137265,585.87,584.94,0.31385718]
[1744882329498,0.34137265,585.87,584.93,0.63918438]
[1744882330399,0.34137265,585.87,584.93,0.34192125]
[1744882330800,0.34137265,585.87,584.93,0.63918438]
[1744882333401,0.34137265,585.87,584.93,0.34192125]
[1744882334698,0.34137265,585.87,584.93,0.63917676]
[1744882336303,0.34137265,585.87,584.93,0.34192125]
[1744882337700,0.34137265,585.87,584.93,0.63916407]
[1744882339406,0.34137265,585.87,584.93,0.34192125]
[1744882339708,0.34137265,585.87,584.94,0.31385456]
[1744882340205,1.30443222,586.87,584.95,0.34190956]
[1744882340405,0.34080259,586.85,584.96,0.31380935]
[1744882340601,0.30587599,586.84,584.97,0.34189787]
[1744882340804,0.34082001,586.82,584.98,0.31380935]
[1744882341006,0.30587599,586.81,584.99,0.34188618]
[1744882341304,0.34083743,586.79,584.99,0.34188618]
[1744882341504,0.30587599,586.78,584.99,0.34188618]
[1744882341706,0.34085486,586.76,584.99,0.34188618]
[1744882341905,0.30587599,586.75,584.99,0.34188618]
[1744882342103,0.34087229,586.73,584.99,0.34188618]
[1744882342303,0.30586984,586.72,584.99,0.34188618]
[1744882342503,0.34088972,586.7,584.99,0.34188618]
[1744882342705,0.30586984,586.69,584.99,0.34188618]
[1744882342904,0.34090715,586.67,584.99,0.34188618]
[1744882343106,0.30586984,586.66,584.99,0.34188618]
[1744882343308,0.34092458,586.64,584.99,0.34188618]
[1744882343610,0.30586984,586.63,584.99,0.34188618]
[1744882343809,0.34094202,586.61,584.99,0.34188618]
[1744882344006,0.30586984,586.6,584.99,0.34188618]
[1744882344204,0.34095945,586.58,584.99,0.34188618]
[1744882344409,0.30586984,586.57,584.99,0.34188618]
[1744882344609,0.34097689,586.55,584.99,0.34188618]
[1744882344810,0.30586984,586.54,584.99,0.34188618]
[1744882345010,0.34099433,586.52,584.99,0.34188618]
[1744882345206,0.30586984,586.51,584.99,0.34188618]
[1744882345413,0.34101178,586.49,584.99,0.34188618]
[1744882345611,0.30586984,586.48,584.99,0.34188618]
[1744882346307,0.34102922,586.46,584.99,0.34188618]
[1744882346606,0.30586984,586.45,584.99,0.34188618]
[1744882346905,0.34104667,586.43,584.99,0.34188618]
[1744882349618,0.29718443,586.42,584.99,0.34188618]
[1744882349818,0.3410583,586.41,584.99,0.34188618]
[1744882351721,0.29719459,586.4,584.99,0.34188618]
[1744882351915,0.34106993,586.39,584.99,0.34188618]
[1744882354727,0.29719332,586.38,584.99,0.34188618]
[1744882354922,0.34108156,586.37,584.99,0.34188618]
[1744882356926,0.30586457,586.36,584.99,0.34188618]
[1744882357127,0.3410932,586.35,584.99,0.34188618]
[1744882358727,0.2970652,586.34,584.99,0.34188618]
[1744882359026,0.30586235,586.33,584.99,0.34188618]
[1744882360323,0.3410932,586.35,584.99,0.34188618]
[1744882360523,0.30586587,586.34,584.99,0.34188618]
[1744882361122,0.34110483,586.33,584.99,0.34188618]
[1744882361329,0.30586587,586.32,584.99,0.34188618]
[1744882361629,0.34111647,586.31,584.99,0.34188618]
[1744882361830,0.30586587,586.3,584.99,0.34188618]
[1744882362030,0.34112811,586.29,584.99,0.34188618]
[1744882362231,0.30586587,586.28,584.99,0.34188618]
[1744882362432,0.34113974,586.27,584.99,0.34188618]
[1744882362633,0.30586587,586.26,584.99,0.34188618]
[1744882362830,0.34115138,586.25,585.0,0.31379987]
[1744882363027,0.30586587,586.24,585.01,0.34187449]
[1744882363226,0.30586587,586.24,585.02,0.31379987]
[1744882363427,0.30586587,586.24,585.03,0.34186281]
[1744882364630,0.29728852,586.23,585.03,0.34186281]
[1744882364831,0.30586587,586.22,585.03,0.34186281]
[1744882365434,0.30586587,586.22,585.04,0.31379752]
[1744882365928,0.30586587,586.22,585.04,0.65565448]
[1744882366133,0.30586587,586.22,585.04,0.34185696]
[1744882366732,0.30586587,586.21,585.04,0.34185696]
[1744882366927,0.30586587,586.24,585.04,0.34185696]
[1744882367132,0.30586587,586.23,585.04,0.34185696]
[1744882367330,0.30586587,586.24,585.04,0.34185696]
[1744882367529,0.30586587,586.23,585.04,0.34185696]
[1744882367729,0.29720474,586.22,585.04,0.34185696]
[1744882368230,0.30586587,586.21,585.04,0.34185696]
[1744882368435,0.29720474,586.22,585.04,0.34185696]
[1744882368635,0.30586672,586.21,585.04,0.34185696]
[1744882368835,0.30586672,586.21,585.05,0.31380005]
[1744882371840,0.29720474,586.22,585.04,0.34185696]
[1744882372038,0.30586644,586.21,585.05,0.31379976]
[1744882375638,0.30586644,586.2,585.05,0.31379976]
[1744882375843,0.2972022,586.21,585.05,0.31379976]
[1744882376035,0.30586644,586.2,585.05,0.31379976]
[1744882380047,0.2972022,586.21,585.04,0.34185696]
[1744882380242,0.30586615,586.2,585.05,0.31379948]
[1744882381545,0.30586615,586.24,585.05,0.31379948]
[1744882381749,0.30586615,586.23,585.05,0.31379948]
[1744882381943,0.30586615,586.22,585.05,0.31379948]
[1744882382142,0.30586615,586.24,585.05,0.31379948]
[1744882382343,0.30586615,586.23,585.05,0.31379948]
[1744882382548,0.30586615,586.24,585.05,0.31379948]
[1744882382747,0.60306835,586.23,585.05,0.31379948]
[1744882382950,0.30586615,586.22,585.05,0.31379948]
[1744882383149,0.34117466,586.21,585.05,0.31379948]
[1744882383445,0.30586615,586.2,585.05,0.31379948]
[1744882383649,0.64704663,586.2,585.05,0.31379948]
[1744882383850,0.30586615,586.19,585.05,0.31379948]
[1744882385546,0.29722378,586.18,585.05,0.31379948]
[1744882385750,0.30586615,586.17,585.05,0.31379948]
[1744882387651,0.34118048,586.2,585.04,0.34185696]
[1744882387851,0.30587028,586.19,585.05,0.31380362]
[1744882388051,0.30587028,586.19,585.05,0.34185112]
[1744882388255,0.34118048,586.2,585.06,0.65560987]
[1744882388451,0.34118048,586.2,585.06,0.34184528]
[1744882394658,0.29718063,586.19,585.06,0.34184528]
[1744882399466,0.34118048,586.2,585.06,0.34184528]
[1744882400561,0.29717682,586.19,585.06,0.34184528]
[1744882402366,0.34118048,586.2,585.06,0.34184528]
[1744882403469,0.30584132,586.19,585.07,0.31377455]
[1744882403764,0.60302195,586.19,585.07,0.31377455]
[1744882403968,0.30584132,586.18,585.07,0.31377455]
[1744882404169,0.29718063,586.19,585.06,0.34184528]
[1744882405373,0.34118048,586.2,585.06,0.34184528]
[1744882412674,0.29717301,586.19,585.06,0.34184528]
[1744882414381,0.34118048,586.2,585.06,0.34184528]
[1744882414677,0.2972187,586.18,585.06,0.34184528]
[1744882417482,0.34118048,586.2,585.06,0.34184528]
[1744882418583,0.29719712,586.19,585.06,0.34184528]
[1744882418783,0.34119212,586.18,585.06,0.34184528]
[1744882426782,0.29723393,586.17,585.06,0.34184528]
[1744882429390,0.34119212,586.18,585.06,0.34184528]
[1744882429788,0.29722885,586.17,585.06,0.34184528]
[1744882432493,0.34119212,586.18,585.06,0.34184528]